Department Family,Entity,Payment Date,Account Description,Expense Type,Supplier Name,System Reference,Gross Amount,Description
Ministry of justice,CAFCASS,28/03/2018,Contact Activities-rechargeabl,HQ,Action for Children,1040694,"29,340.00",SPIP January - February Payment
Ministry of justice,CAFCASS,28/03/2018,Contact Activities-rechargeabl,HQ,Action for Children,1040695,"26,820.00",SPIP February - March Payment
Ministry of justice,CAFCASS,20/03/2018,Finance system licence fees,HQ,Advanced Business Solutions,1039801,"51,576.00",E5 Monthly License Fee Sept17-April 18
Ministry of justice,CAFCASS,19/03/2018,Service Charge,HQ,AMAS T/A JLL agent for Pace Trustees Ltd,1039610,"8,554.91",B'ham 2nd Fl Serv Chg 25/03/18- 23/06/18
Ministry of justice,CAFCASS,19/03/2018,Rent,HQ,AMAS T/A JLL agent for Pace Trustees Ltd,1039610,"23,877.00",B'ham 2nd Fl Rent 25/03/18- 23/06/18
Ministry of justice,CAFCASS,02/03/2018,Temporary Business Support Sta,HQ,Brook Street UK Ltd,1038734,"26,475.78",Temps W/E 09/02/18
Ministry of justice,CAFCASS,20/03/2018,Temporary Business Support Sta,HQ,Brook Street UK Ltd,1039625,"26,937.82",Temps W/E 23/02/18
Ministry of justice,CAFCASS,21/03/2018,Temporary Business Support Sta,HQ,Brook Street UK Ltd,1039802,"27,532.36",Temps W/E 16/02/18
Ministry of justice,CAFCASS,22/03/2018,Temporary Business Support Sta,HQ,Brook Street UK Ltd,1039961,"25,885.15",Temps W/E 16/02/18
Ministry of justice,CAFCASS,22/03/2018,Temporary Business Support Sta,HQ,Brook Street UK Ltd,1039965,"25,271.82",Temps W/E 16/02/18
Ministry of justice,CAFCASS,28/03/2018,Temporary Business Support Sta,HQ,Brook Street UK Ltd,1040559,"28,942.52",Temps W/E 16/02/18
Ministry of justice,CAFCASS,23/03/2018,Rent,HQ,Cabinet Office CO - Misc Receipts,1040171,"9,775.44",Norwich Rent 01/07/17 - 30/09/17
Ministry of justice,CAFCASS,23/03/2018,Rates,HQ,Cabinet Office CO - Misc Receipts,1040171,"6,017.46",Norwich Rates 01/07/17 - 30/09/17
Ministry of justice,CAFCASS,23/03/2018,Service Charge,HQ,Cabinet Office CO - Misc Receipts,1040171,"8,676.03",Norwich Serv Chg 01/07/17 - 30/09/17
Ministry of justice,CAFCASS,23/03/2018,Electricity,HQ,Cabinet Office CO - Misc Receipts,1040171,"3,250.17",Norwich Electric 01/07/17 - 30/09/17
Ministry of justice,CAFCASS,23/03/2018,Gas,HQ,Cabinet Office CO - Misc Receipts,1040171,464.31,Norwich Gas 01/07/17 - 30/09/17
Ministry of justice,CAFCASS,23/03/2018,Water Rates,HQ,Cabinet Office CO - Misc Receipts,1040171,154.77,Norwich Water 01/07/17 - 30/09/17
Ministry of justice,CAFCASS,23/03/2018,Service Charge,HQ,Cabinet Office CO - Misc Receipts,1040171,"1,382.86",Norwich Post April 17 to Oct 17
Ministry of justice,CAFCASS,23/03/2018,Rent,HQ,Cabinet Office CO - Misc Receipts,1040172,"9,775.44",Norwich Rent 01/10/17 - 31/12/17
Ministry of justice,CAFCASS,23/03/2018,Rates,HQ,Cabinet Office CO - Misc Receipts,1040172,"6,017.46",Norwich Rates 01/10/17 - 31/12/17
Ministry of justice,CAFCASS,23/03/2018,Service Charge,HQ,Cabinet Office CO - Misc Receipts,1040172,"8,676.03",Norwich Serv Chg 01/10/17 - 31/12/17
Ministry of justice,CAFCASS,23/03/2018,Electricity,HQ,Cabinet Office CO - Misc Receipts,1040172,"3,250.17",Norwich Electric 01/10/17 - 31/12/17
Ministry of justice,CAFCASS,23/03/2018,Gas,HQ,Cabinet Office CO - Misc Receipts,1040172,464.31,Norwich Gas 01/10/17 - 31/12/17
Ministry of justice,CAFCASS,23/03/2018,Water Rates,HQ,Cabinet Office CO - Misc Receipts,1040172,154.77,Norwich Water 01/10/17 - 31/12/17
Ministry of justice,CAFCASS,07/03/2018,Agency Practitioners,Op Service Areas,Community Resourcing t/a Retinue Solutio,1038991,"151,868.45",Agency Staff W/E 11/02/2018
Ministry of justice,CAFCASS,12/03/2018,Agency Practitioners,Op Service Areas,Community Resourcing t/a Retinue Solutio,1039173,"120,422.66",Agency Staff W/E 18/02/2018
Ministry of justice,CAFCASS,19/03/2018,Agency Practitioners,Op Service Areas,Community Resourcing t/a Retinue Solutio,1039737,"163,130.21",Agency Staff W/E 25/02/2018
Ministry of justice,CAFCASS,22/03/2018,Agency Practitioners,Op Service Areas,Community Resourcing t/a Retinue Solutio,1039803,"108,822.02",Agency Staff W/E 04/03/2018
Ministry of justice,CAFCASS,26/03/2018,Agency Practitioners,Op Service Areas,Community Resourcing t/a Retinue Solutio,1040231,"102,841.70",Agency Staff W/E 11/03/2018
Ministry of justice,CAFCASS,28/03/2018,Agency Practitioners,Op Service Areas,Community Resourcing t/a Retinue Solutio,1040553,"96,394.13",Agency Staff W/E 18/03/2018
Ministry of justice,CAFCASS,28/03/2018,Rates,HQ,Coventry City Council (Rates),1040346,"161,457.50",NBC Rates 01/04/18 - 01/04/19
Ministry of justice,CAFCASS,28/03/2018,Rates,HQ,Croydon Council,1040350,"32,291.50",Croydon Rates 01/04/18 - 31/03/19
Ministry of justice,CAFCASS,28/03/2018,Rent,HQ,DWP RM Receipts and SDP t/a DWP,1040416,"47,735.22",Leeds Rent Jan18
Ministry of justice,CAFCASS,28/03/2018,Service Charge,HQ,DWP RM Receipts and SDP t/a DWP,1040416,"2,245.38",Leeds Serv Chg Jan18
Ministry of justice,CAFCASS,28/03/2018,Contact Activities-rechargeabl,HQ,Family Action,1040698,"37,651.25",SPIP February - March Payment
Ministry of justice,CAFCASS,15/03/2018,Rent,HQ,GVA Grimley Ltd re Sports Council Trust,1039475,"157,151.50",Bloomsbury Rent 25/03/18 - 23/06/18
Ministry of justice,CAFCASS,15/03/2018,Service Charge,HQ,GVA Grimley Ltd re Sports Council Trust,1039475,"48,912.94",Bloomsbury Serv Chg 25/03/18 - 23/06/18
Ministry of justice,CAFCASS,23/03/2018,Rent,HQ,GVA re London & Continental Railways,1040174,"66,191.62",Manchester 7th Fl Rent 25/03/18-23/06/18
Ministry of justice,CAFCASS,23/03/2018,Service Charge,HQ,GVA re London & Continental Railways,1040174,"16,951.20",Manchester 7th Fl S/C 25/03/18-23/06/18
Ministry of justice,CAFCASS,28/03/2018,Rent,HQ,Montagu Evans LLP,1040733,"13,522.05",York Rent 01/04/17 - 30/06/17
Ministry of justice,CAFCASS,28/03/2018,Rates,HQ,Montagu Evans LLP,1040733,"3,572.46",York Rates 01/04/17 - 30/06/17
Ministry of justice,CAFCASS,28/03/2018,Service Charge,HQ,Montagu Evans LLP,1040733,"6,511.31",York Depreciation 01/04/17 - 30/06/17
Ministry of justice,CAFCASS,28/03/2018,Service Charge,HQ,Montagu Evans LLP,1040733,"5,276.87",York Service Charge 01/04/17 - 30/06/17
Ministry of justice,CAFCASS,28/03/2018,Electricity,HQ,Montagu Evans LLP,1040733,947.14,York Electric 01/04/17 - 30/06/17
Ministry of justice,CAFCASS,28/03/2018,Gas,HQ,Montagu Evans LLP,1040733,222.26,York Gas 01/04/17 - 30/06/17
Ministry of justice,CAFCASS,28/03/2018,Water Rates,HQ,Montagu Evans LLP,1040733,58.57,York Water 01/04/17 - 30/06/17
Ministry of justice,CAFCASS,28/03/2018,Rent,HQ,Montagu Evans LLP,1040734,"13,522.05",York Rent 01/07/17 - 30/09/17
Ministry of justice,CAFCASS,28/03/2018,Rates,HQ,Montagu Evans LLP,1040734,"3,572.46",York Rates 01/07/17 - 30/09/17
Ministry of justice,CAFCASS,28/03/2018,Service Charge,HQ,Montagu Evans LLP,1040734,"6,511.31",York Depreciation 01/07/17 - 30/09/17
Ministry of justice,CAFCASS,28/03/2018,Service Charge,HQ,Montagu Evans LLP,1040734,"5,276.87",York Service Charge 01/07/17 - 30/09/17
Ministry of justice,CAFCASS,28/03/2018,Electricity,HQ,Montagu Evans LLP,1040734,947.14,York Electric 01/07/17 - 30/09/17
Ministry of justice,CAFCASS,28/03/2018,Gas,HQ,Montagu Evans LLP,1040734,222.26,York Gas 01/07/17 - 30/09/17
Ministry of justice,CAFCASS,28/03/2018,Water Rates,HQ,Montagu Evans LLP,1040734,58.57,York Water 01/07/17 - 30/09/17
Ministry of justice,CAFCASS,28/03/2018,Rent,HQ,Montagu Evans LLP,1040735,"13,522.03",York Rent 01/10/17 - 31/12/17
Ministry of justice,CAFCASS,28/03/2018,Rates,HQ,Montagu Evans LLP,1040735,"3,572.45",York Rates 01/10/17 - 31/12/17
Ministry of justice,CAFCASS,28/03/2018,Service Charge,HQ,Montagu Evans LLP,1040735,"6,511.30",York Depreciation 01/10/17 - 31/12/17
Ministry of justice,CAFCASS,28/03/2018,Service Charge,HQ,Montagu Evans LLP,1040735,"5,276.85",York Service Charge 01/10/17 - 31/12/17
Ministry of justice,CAFCASS,28/03/2018,Electricity,HQ,Montagu Evans LLP,1040735,947.12,York Electric 01/10/17 - 31/12/17
Ministry of justice,CAFCASS,28/03/2018,Gas,HQ,Montagu Evans LLP,1040735,222.27,York Gas 01/010/17 - 31/12/17
Ministry of justice,CAFCASS,28/03/2018,Water Rates,HQ,Montagu Evans LLP,1040735,58.57,York Water 01/10/17 - 31/12/17
Ministry of justice,CAFCASS,28/03/2018,Rent,HQ,Montagu Evans LLP,1040736,"13,522.05",York Rent 01/01/18 - 31/03/18
Ministry of justice,CAFCASS,28/03/2018,Rates,HQ,Montagu Evans LLP,1040736,"3,572.46",York Rates 01/01/18 - 31/03/18
Ministry of justice,CAFCASS,28/03/2018,Service Charge,HQ,Montagu Evans LLP,1040736,"6,511.31",York Depreciation 01/101/18 - 31/03/18
Ministry of justice,CAFCASS,28/03/2018,Service Charge,HQ,Montagu Evans LLP,1040736,"5,276.87",York Service Charge 01/01/18 - 31/03/18
Ministry of justice,CAFCASS,28/03/2018,Electricity,HQ,Montagu Evans LLP,1040736,947.14,York Electric 01/01/18 - 31/03/18
Ministry of justice,CAFCASS,28/03/2018,Gas,HQ,Montagu Evans LLP,1040736,222.26,York Gas 01/01/18 - 31/03/18
Ministry of justice,CAFCASS,28/03/2018,Water Rates,HQ,Montagu Evans LLP,1040736,58.57,York Water 01/01/18 - 31/03/18
Ministry of justice,CAFCASS,28/03/2018,Rent,HQ,Montagu Evans LLP,1040737,"42,721.83",York Rent 02/11/15 - 31/03/16
Ministry of justice,CAFCASS,28/03/2018,Rent,HQ,Montagu Evans LLP,1040737,"103,268.00",York Rent 01/04/16 - 31/03/17
Ministry of justice,CAFCASS,16/03/2018,N-Cnt Computer Services and Ma,HQ,NDI Technologies,1039551,"27,110.88",SRS-SUP Period Cov 24/03/18 to 23/03/19
Ministry of justice,CAFCASS,19/03/2018,N-Cnt Computer Services and Ma,HQ,NDI Technologies,1039668,"26,449.63",SRS SUP
Ministry of justice,CAFCASS,19/03/2018,N-Cnt Computer Services and Ma,HQ,NDI Technologies,1039669,"-26,449.63",Invoice 305765
Ministry of justice,CAFCASS,28/03/2018,Rates,HQ,Nottingham City Council Business Rates,1040353,"30,812.50",Nottingham Rates 01/04/18 - 31/03/19
Ministry of justice,CAFCASS,09/03/2018,Travel and Subs - UK (Non-Taxa,HQ,Redfern Travel Limited,1039178,"6,343.78",Redfern hotel Feb 18
Ministry of justice,CAFCASS,09/03/2018,Travel and Subs - UK (Non-Taxa,HQ,Redfern Travel Limited,1039178,"18,172.56",Redfern Feb 18
Ministry of justice,CAFCASS,09/03/2018,Travel and Subs - UK (Non-Taxa,Op Service Areas,Redfern Travel Limited,1039178,"13,702.77",Redfern hotel Feb 18
Ministry of justice,CAFCASS,09/03/2018,Travel and Subs - UK (Non-Taxa,Op Service Areas,Redfern Travel Limited,1039178,"34,181.29",Redfern Feb 18
Ministry of justice,CAFCASS,26/03/2018,N-Cnt Computer Services and Ma,HQ,Softcat Plc,1040245,"58,518.73",021 Dubit Project
Ministry of justice,CAFCASS,15/03/2018,Rent,HQ,University of Warwick Science Park,1039365,"34,370.01",NBC Rent 01/03/18 - 31/03/18
Ministry of justice,CAFCASS,15/03/2018,Service Charge,HQ,University of Warwick Science Park,1039365,"3,368.24",NBC Serv Chg 01/03/18 - 31/03/18
Ministry of justice,CAFCASS,09/03/2018,Mobile Call Charges,HQ,Vodafone,1039185,"60,487.46",Vodafone Call charge Jan 18
Ministry of justice,CAFCASS,09/03/2018,Mobile Phone Rental,HQ,Vodafone,1039185,"25,717.14",Vodafone Line Rental Feb 18
